[Event "MCCT Chessable Masters 2022"]
[Site "Online"]
[Date "2022.05.16"]
[Round "10.8"]
[White "Jones, Gawain C B"]
[Black "Anton Guijarro, David"]
[Result "1-0"]
[ECO "C84"]
[WhiteElo "2669"]
[BlackElo "2691"]
[Annotator "TA"]
[PlyCount "71"]
[EventDate "2022.05.19"]
[EventType "tourn"]
[EventCountry "NET"]
[SourceTitle "playchess.com"]
[Source "ChessBase"]
[SourceQuality "1"]
[TimeControl "900+10"]

{[%evp 19,71,0,0,0,0,0,0,0,0,-10,-3,-4,-6,-3,0,0,79,70,77,68,64,0,104,114,269,266,268,237,396,397,377,292,292,238,356,343,424,399,554,522,603,629,597,588,543,451,29982,12359,12826,12812,2750,2468,2504,2304]} 1. e4 {[%emt 0:00:00]} e5 {[%emt 0:00:00]} 2. Nf3 {[%emt 0:00:02]} Nc6 {[%emt 0:00:03]} 3. Bb5 {[%emt 0:00:01]} a6 {[%emt 0:00:03]} 4. Ba4 {[%emt 0:00:02]} Nf6 {[%emt 0:00:02]} 5. d4 {[%emt 0:00:02]} exd4 {[%emt 0:00:47]} 6. O-O {[%emt 0:00:02]} Be7 {[%emt 0:00:52]} 7. e5 {[%emt 0:00:04]} Ne4 {[%emt 0:00:40]} 8. Nxd4 {[%emt 0:00:04]} O-O {[%emt 0:00:29]} 9. Nf5 {[%emt 0:00:20]} d5 {[%emt 0:00:11]} 10. Nxe7+ {[%emt 0:00:14]} Nxe7 {[%emt 0:00:03]} 11. c3 {[%emt 0:00:05] C84: Closed Ruy Lopez: Unusual White 6th moves.} Nc5 {[%emt 0:02:45]} 12. Bc2 {[%emt 0:00:03]} Bf5 {[%emt 0:00:24]} 13. Na3 {[%emt 0:00:02] The position is equal.} Qd7 {[%emt 0:00:42]} 14. Be3 {[%emt 0:00:05]} Ne6 {[%emt 0:00:42] [#]} 15. g4 $5 $146 {[%emt 0:00:20][%mdl 8] An interesting novelty.} ({Predecessor:} 15. f4 f6 16. exf6 Rxf6 17. Qd2 Raf8 18. Rad1 h5 19. Bxf5 Nxf5 20. Nc2 c6 21. Bf2 {0-1 (34) Durarbayli,V (2629)-Dubov,D (2714) Riga 2021}) 15... Bxc2 {[%emt 0:00:24]} 16. Nxc2 {[%emt 0:00:01]} g5 {[%emt 0:03:32]} 17. h4 {[%emt 0:03:58]} Ng6 {[%emt 0:00:04]} (17... h6 $1 $11) 18. hxg5 $16 {[%emt 0:00:50]} Nxe5 {[%emt 0:00:03]} 19. f4 $36 {[%emt 0:00:51][%mdl 2048] White has some pressure.} Nc4 {[%emt 0:00:06]} 20. Bc1 {[%emt 0:01:54]} (20. b3 $14 Nxe3 21. Nxe3) 20... Rfe8 {[%emt 0:02:07] [#]} (20... c6 $1 $11 {keeps the balance.}) 21. b3 $1 {[%emt 0:00:37]} Na5 {[%emt 0:00:57] [#] A mistake that costs the game.} (21... Nb6 $16) 22. Ne3 $1 $18 {[%emt 0:01:13][%cal Bc2e3,Be3f5,Bf5h6][%mdl 32]} Rad8 {[%emt 0:00:30]} 23. Nf5 {[%emt 0:00:25] Hoping for Nh6+.} Ng7 $2 {[%emt 0:01:02]} (23... Nc6 24. Bb2 Kh8) 24. Nh6+ {[%emt 0:00:16]} Kh8 {[%emt 0:00:01]} 25. Qd4 {[%emt 0:00:42]} Nc6 {[%emt 0:02:18]} 26. Qf2 {[%emt 0:01:35] aiming for f5.} ({Stronger than} 26. Qf6 Re6 27. Nxf7+ Kg8 28. Nh6+ Kh8 29. Nf7+ Kg8 30. Nh6+ Kh8 31. Nf7+ $11) 26... d4 {[%emt 0:00:06]} (26... Re4 {might work better.} 27. f5 Ne5) 27. Bb2 {[%emt 0:01:36]} d3 {[%emt 0:00:01]} 28. Rfe1 {[%emt 0:00:07] Prevents Re2.} (28. c4 $2 Re2 29. Bxg7+ Kxg7 $17) 28... Rxe1+ {[%emt 0:00:13]} 29. Rxe1 {[%emt 0:00:02]} Re8 {[%emt 0:00:13]} 30. Rxe8+ {[%emt 0:00:38]} Qxe8 {[%emt 0:00:02]} 31. c4 {[%emt 0:00:03]} Qd7 {[%emt 0:00:18] Strongly threatening ...d2.} 32. Bc3 {[%emt 0:00:23] White threatens Qb2 and mate.} ({Not} 32. Nf5 $2 d2 33. Bxg7+ Kg8 $19) 32... Nd8 {[%emt 0:00:10]} (32... d2 $18 33. Qxd2 Qxd2 34. Bxd2 Nd4 35. Nxf7+ Kg8) 33. Bxg7+ {[%emt 0:00:46]} (33. Qb2 $142 Nde6 34. Bxg7+ Nxg7 35. Nf5 Qxf5 36. gxf5 Kg8 37. Qf6 Nxf5 38. Qxf5) 33... Kxg7 {[%emt 0:00:02] White is clearly winning.} 34. Qb2+ {[%emt 0:00:01]} Kf8 {[%emt 0:00:06]} 35. Qh8+ {[%emt 0:00:03]} Ke7 {[%emt 0:00:13]} 36. Nf5+ {[%emt 0:00:18] Weighted Error Value: White=0.09 (flawless) /Black=0.82} 1-0

[Event "MCCT Chessable Masters 2022"]
[Site "Online"]
[Date "2022.05.16"]
[Round "11.1"]
[White "Anton Guijarro, David"]
[Black "Carlsen, Magnus"]
[Result "1/2-1/2"]
[ECO "B30"]
[WhiteElo "2691"]
[BlackElo "2864"]
[Annotator "TA"]
[PlyCount "74"]
[EventDate "2022.05.19"]
[EventType "tourn"]
[EventCountry "NET"]
[SourceTitle "playchess.com"]
[Source "ChessBase"]
[SourceQuality "1"]
[TimeControl "900+10"]

{[%evp 10,74,16,4,22,27,47,50,51,50,46,47,56,52,44,54,38,47,39,20,28,10,10,13,2,12,10,4,13,0,0,-9,0,0,0,0,0,0,8,6,36,28,25,0,0,0,0,0,0,0,0,0,0,0,0,0,0,0,0,0,0,0,0,0,0,0,0]} 1. e4 {[%emt 0:00:00]} c5 {[%emt 0:00:00]} 2. Nf3 {[%emt 0:00:03]} Nc6 {[%emt 0:00:02]} 3. Bb5 {[%emt 0:00:08]} e6 {[%emt 0:00:30][%cal Be7e6,Be6e5][%mdl 32]} 4. Bxc6 {[%emt 0:00:15]} bxc6 {[%emt 0:00:03]} 5. d3 {[%emt 0:00:04]} Qc7 {[%emt 0:00:12]} 6. O-O {[%emt 0:00:30]} e5 {[%emt 0:01:27] B30: Sicilian: 2...Nc6 3 Bb5, lines without ...g6.} 7. c3 {[%emt 0:04:08]} Nf6 {[%emt 0:00:48]} 8. Bg5 {[%emt 0:00:42]} Be7 {[%emt 0:02:06] White is slightly better.} 9. d4 {[%emt 0:00:05]} cxd4 {[%emt 0:02:00]} 10. cxd4 {[%emt 0:00:03]} d6 {[%emt 0:00:01] [#]} 11. dxe5 $146 {[%emt 0:00:16]} ({Predecessor:} 11. Qc2 O-O 12. Nbd2 exd4 13. Nxd4 c5 14. Rac1 Qb7 15. N4f3 Bg4 16. Rfe1 Rfe8 17. e5 dxe5 18. Rxe5 {0-1 (40) Aguilar,F (1835)-Topel,Z (2214) Dresden 2008}) 11... dxe5 {[%emt 0:00:03]} 12. Qc2 {[%emt 0:00:49]} O-O {[%emt 0:00:04]} 13. Nbd2 {[%emt 0:00:14]} h6 {[%emt 0:01:52]} 14. Be3 {[%emt 0:00:40]} Be6 {[%emt 0:00:03]} 15. Rfc1 {[%emt 0:01:05]} Rfc8 {[%emt 0:00:09]} 16. Bc5 {[%emt 0:00:21]} Bxc5 {[%emt 0:00:01]} 17. Qxc5 {[%emt 0:00:01]} Nd7 {[%emt 0:00:00]} 18. Qc3 {[%emt 0:00:20]} c5 {[%emt 0:01:18]} 19. Nc4 {[%emt 0:00:39][%cal Rc4e5,Bd2c4,Bc4e3,Be3f5][%mdl 32]} f6 {[%emt 0:00:02]} 20. Nh4 {[%emt 0:00:44]} Nb6 {[%emt 0:00:14]} 21. Ne3 {[%emt 0:00:11]} c4 {[%emt 0:00:05]} 22. Nhf5 {[%emt 0:03:25]} Kh7 {[%emt 0:00:06]} 23. Qa3 {[%emt 0:00:57]} Rd8 {[%emt 0:00:18]} 24. Rd1 {[%emt 0:00:34]} Bxf5 {[%emt 0:05:03]} (24... c3 {is interesting.} 25. bxc3 Nc4 26. Qa6 Rxd1+ 27. Rxd1 Qc8) 25. Nxf5 {[%emt 0:00:12]} Rd7 {[%emt 0:00:05]} 26. Qf3 {[%emt 0:01:17]} Rad8 {[%emt 0:00:37] The position is equal.} 27. Rxd7 {[%emt 0:00:17]} Qxd7 {[%emt 0:00:07]} 28. h4 {[%emt 0:00:03]} Qd2 {[%emt 0:00:13]} 29. Qa3 {[%emt 0:00:44]} Rd7 {[%emt 0:00:22]} 30. h5 {[%emt 0:00:19]} Qe2 {[%emt 0:00:09][%csl LRe4,LRh5]} 31. Ng3 {[%emt 0:00:16]} Qd3 {[%emt 0:00:58]} 32. Qf8 {[%emt 0:00:18]} Qc2 {[%emt 0:00:11]} 33. Qe8 {[%emt 0:00:17]} Qxb2 {[%emt 0:00:03]} 34. Qg6+ {[%emt 0:00:05]} Kg8 {[%emt 0:00:02]} 35. Qe8+ {[%emt 0:00:03]} Kh7 {[%emt 0:00:01]} 36. Qg6+ {[%emt 0:00:17]} Kg8 {[%emt 0:00:02]} 37. Qe8+ {[%emt 0:00:02]} Kh7 {[%emt 0:00:02] Weighted Error Value: White=0.03 (flawless) /Black=0.03 (flawless)} 1/2-1/2

[Event "MCCT Chessable Masters 2022"]
[Site "Online"]
[Date "2022.05.16"]
[Round "11.2"]
[White "Ding, Liren"]
[Black "Jones, Gawain C B"]
[Result "1-0"]
[ECO "E73"]
[WhiteElo "2806"]
[BlackElo "2669"]
[Annotator "TA"]
[PlyCount "83"]
[EventDate "2022.05.19"]
[EventType "tourn"]
[EventCountry "NET"]
[SourceTitle "playchess.com"]
[Source "ChessBase"]
[SourceQuality "1"]
[TimeControl "900+10"]

{[%evp 14,83,10,23,26,11,6,0,0,-6,0,0,0,7,0,0,15,-30,28,0,0,0,0,0,247,253,245,248,245,264,256,245,250,250,364,359,366,349,401,400,395,333,333,334,333,314,287,296,369,346,966,908,1203,1178,1543,1321,4301,3702,3329,2404,5698,4807,29986,29987,29989,29990,29992,29993,29993,29994,29994,29995]} 1. d4 {[%emt 0:00:00]} Nf6 {[%emt 0:00:00]} 2. c4 {[%emt 0:00:01]} g6 {[%emt 0:00:02]} 3. Nc3 {[%emt 0:00:01]} Bg7 {[%emt 0:00:00]} 4. e4 {[%emt 0:00:01]} d6 {[%emt 0:00:01]} 5. Be2 {[%emt 0:00:07]} O-O {[%emt 0:00:02]} 6. h4 {[%emt 0:00:01][%cal Bh2h4,Bh4h5,Bh5h6][%mdl 32]} c5 {[%emt 0:00:16] The main line 6...c5 scores better than 6...h5.} 7. d5 {[%emt 0:00:02]} e6 {[%emt 0:00:02]} 8. h5 {[%emt 0:00:02]} exd5 {[%emt 0:00:05] E73: King's Indian: Averbakh Variation without 6...c5.} 9. exd5 {[%emt 0:00:20]} Re8 {[%emt 0:00:03]} 10. h6 {[%emt 0:00:01]} Bh8 {[%emt 0:00:01] The position is equal.} 11. Bg5 {[%emt 0:00:07] [#]} Qa5 $146 {[%emt 0:00:28]} ({Predecessor:} 11... Qb6 12. b3 Ne4 13. Nxe4 Rxe4 14. Kf1 Na6 15. Bd3 Bg4 16. f3 Rd4 17. Qe2 Bd7 {½-½ (33) Oparin,G (2674)-Nakamura,H (2750) Berlin 2022}) 12. Bd2 {[%emt 0:01:03]} Qb6 {[%emt 0:01:01]} 13. b3 {[%emt 0:00:04]} Ne4 {[%emt 0:00:16]} 14. Nxe4 {[%emt 0:00:02]} Rxe4 {[%emt 0:00:02]} 15. Rc1 {[%emt 0:00:21]} Nd7 {[%emt 0:01:06]} (15... Na6 $142) 16. Nf3 {[%emt 0:01:11][%cal Bg1f3,Bf3g5,Bg5e4][%mdl 32]} Ne5 {[%emt 0:00:29]} 17. Ng5 {[%emt 0:01:00]} Nd3+ {[%emt 0:01:41]} 18. Kf1 {[%emt 0:00:02]} Nb2 $2 {[%emt 0:00:19] Black is on the road to losing.} (18... Nxc1 $11 19. Nxe4 Nxa2) 19. Qc2 $18 {[%emt 0:01:20]} Rxe2 {[%emt 0:00:24]} 20. Kxe2 {[%emt 0:00:00]} Bf5 {[%emt 0:00:42]} 21. Ne4 {[%emt 0:00:02]} Re8 {[%emt 0:00:51]} 22. f3 {[%emt 0:00:05][%cal Bf2f3,Bf3e4][%mdl 32]} Qd8 {[%emt 0:00:31]} 23. Rce1 {[%emt 0:02:26]} Rxe4+ {[%emt 0:03:37]} (23... Bxe4 {was worth a try.} 24. fxe4 Qf6) 24. fxe4 {[%emt 0:00:00] Chess con chili.} Bg4+ {[%emt 0:00:01]} 25. Kf1 {[%emt 0:01:25] [#] Threatens to win with Bc3.} Be5 {[%emt 0:02:46]} 26. Be3 {[%emt 0:00:15]} f5 {[%emt 0:00:05]} 27. exf5 {[%emt 0:04:36]} Bxf5 {[%emt 0:00:21]} 28. Qd2 {[%emt 0:00:01] Black must now prevent Bg5.} Nd3 {[%emt 0:00:33]} 29. Bg5 {[%emt 0:01:07]} Qf8 {[%emt 0:00:22] [#]} 30. Rxe5 $1 {[%emt 0:00:05]} dxe5 {[%emt 0:00:27]} (30... Nxe5 31. Kg1) 31. Kg1 {[%emt 0:00:01][%cal Og2g4] Strongly threatening g4!} Qd6 $2 {[%emt 0:00:35]} (31... e4 32. Rh4 Qf7) 32. g4 {[%emt 0:00:58][%cal Bg2g4,Bg4f5][%mdl 32]} e4 {[%emt 0:01:35]} 33. gxf5 {[%emt 0:00:15]} Qg3+ {[%emt 0:00:05]} 34. Qg2 {[%emt 0:00:01]} Qe5 {[%emt 0:00:02]} 35. Rh4 {[%emt 0:00:33][%cal Bh1h4,Bh4h2,Bh2g2][%mdl 32]} Qd4+ {[%emt 0:00:31]} 36. Kh1 {[%emt 0:00:32] aiming for fxg6.} Qa1+ {[%emt 0:00:14]} 37. Qg1 {[%emt 0:00:08]} Qxa2 {[%emt 0:00:06]} 38. Rh2 {[%emt 0:00:39] White mates.} Qxb3 {[%emt 0:00:07]} 39. fxg6 {[%emt 0:00:01]} Ne5 {[%emt 0:00:19]} 40. gxh7+ {[%emt 0:00:01]} Kxh7 {[%emt 0:00:05]} 41. Be3 {[%emt 0:00:02][%csl Gh6][%cal Rg1g7]} Ng6 {[%emt 0:00:25]} 42. Rg2 {[%emt 0:00:03] Weighted Error Value: White=0.06 (flawless) /Black=0.58} 1-0

[Event "MCCT Chessable Masters 2022"]
[Site "Online"]
[Date "2022.05.16"]
[Round "11.3"]
[White "Hansen, Eric"]
[Black "Harikrishna, Pentala"]
[Result "0-1"]
[ECO "C84"]
[WhiteElo "2606"]
[BlackElo "2705"]
[Annotator "TA"]
[PlyCount "74"]
[EventDate "2022.05.19"]
[EventType "tourn"]
[EventCountry "NET"]
[SourceTitle "playchess.com"]
[Source "ChessBase"]
[SourceQuality "1"]
[TimeControl "900+10"]

{[%evp 15,74,-16,-16,-18,-19,-9,15,-15,-8,-10,0,-52,-44,-92,-49,-52,-50,-99,-81,-68,-65,-65,-59,-57,0,-65,-69,-60,-21,-134,-144,-140,-157,-252,-193,-254,-202,-177,-66,-206,-202,-365,-373,-329,-285,-365,-372,-500,-503,-495,-479,-493,-387,-454,-455,-469,-468,-909,-943,-1874,-1539]} 1. e4 {[%emt 0:00:00]} e5 {[%emt 0:00:00]} 2. Nf3 {[%emt 0:00:01]} Nc6 {[%emt 0:00:02]} 3. Bb5 {[%emt 0:00:01]} a6 {[%emt 0:00:01]} 4. Ba4 {[%emt 0:00:00]} Nf6 {[%emt 0:00:02]} 5. d3 {[%emt 0:00:03]} d6 {[%emt 0:00:23]} 6. Bxc6+ {[%emt 0:00:16]} bxc6 {[%emt 0:00:02]} 7. O-O {[%emt 0:00:40]} Be7 {[%emt 0:00:08]} 8. h3 {[%emt 0:00:24]} O-O {[%emt 0:00:04]} 9. Re1 {[%emt 0:00:01] C84: Closed Ruy Lopez: Unusual White 6th moves.} c5 {[%emt 0:00:08]} 10. c3 {[%emt 0:00:05]} Nd7 {[%emt 0:00:54]} 11. Nbd2 {[%emt 0:00:03] [#] The position is equal.} Bb7 $146 {[%emt 0:01:17]} ({Predecessor:} 11... a5 12. Nf1 Re8 13. Qc2 Bb7 {0-1 (13) De la Foret,F (2142)-Cleto,D (2226) FICGS email 2019}) 12. Nc4 {[%emt 0:00:13]} Rb8 {[%emt 0:00:32]} 13. Bd2 {[%emt 0:00:30]} (13. Ne3 $11) 13... f5 $15 {[%emt 0:00:09]} 14. b4 {[%emt 0:00:20]} (14. Qc2 $15) 14... fxe4 {[%emt 0:00:41]} 15. dxe4 {[%emt 0:00:00]} Qe8 $1 {[%emt 0:00:03]} 16. Rb1 {[%emt 0:02:56]} (16. Na5 $15) 16... Ba8 {[%emt 0:01:47]} (16... Qg6 {seems wilder.} 17. Qe2 Bc6 18. Ra1 Kh8) 17. Qe2 {[%emt 0:02:59]} cxb4 {[%emt 0:00:14]} 18. cxb4 {[%emt 0:00:05]} Nf6 {[%emt 0:00:31]} 19. Qd3 {[%emt 0:01:09]} Nh5 {[%emt 0:02:11]} (19... Kh8 $15) 20. Nh2 {[%emt 0:00:28]} ({White should try} 20. Rbc1 $11) 20... Qg6 {[%emt 0:00:21]} 21. Ng4 {[%emt 0:00:20]} Bg5 {[%emt 0:00:40]} 22. Rbc1 {[%emt 0:00:52]} (22. f3 $11 {keeps the balance.}) 22... Bxd2 $1 $17 {[%emt 0:01:01]} 23. Nxd2 {[%emt 0:00:02] [#]} Nf4 $1 {[%emt 0:00:01]} 24. Qf3 {[%emt 0:00:37]} (24. Qb3+ $17 {was necessary.} Kh8 25. Kh2 (25. Rxc7 $2 h5 $19)) 24... h5 {[%emt 0:00:56]} 25. Nh2 {[%emt 0:00:01]} (25. Ne3 {was called for.}) 25... Rf7 {[%emt 0:00:38]} 26. a3 {[%emt 0:00:29] [#]} Rbf8 {[%emt 0:00:16]} ({Better is} 26... d5 $1 $19 {Hoping for ...dxe4.} 27. Rcd1 dxe4) 27. Ndf1 {[%emt 0:04:09] White does not recover from this.} (27. Rc2 $15) 27... d5 $19 {[%emt 0:01:29][%cal Bd6d5,Bd5e4][%mdl 32]} 28. Rcd1 $2 {[%emt 0:00:15]} (28. Qg3 Qxg3 29. fxg3) 28... dxe4 {[%emt 0:00:48]} 29. Qg3 {[%emt 0:00:02]} Qh6 {[%emt 0:00:58]} 30. Ne3 {[%emt 0:00:05]} Nd3 {[%emt 0:00:24]} 31. h4 {[%emt 0:00:50]} Nxe1 {[%emt 0:00:25]} 32. Rxe1 {[%emt 0:00:02]} Rxf2 {[%emt 0:00:47][%cal Bf7f2,Bf2d2,Bd2d3,Bd3d1][%mdl 32]} 33. Qxe5 {[%emt 0:00:15]} Rd2 {[%emt 0:01:44]} 34. Nhf1 {[%emt 0:00:11]} Rd3 {[%emt 0:00:10] Black is clearly winning.} 35. Qxc7 {[%emt 0:00:56]} Qf6 {[%emt 0:00:07] ( -> ...Qf2+)} 36. Re2 {[%emt 0:01:16] [#] Prevents Qf2+.} (36. Qg3 $142) 36... Rd1 $3 {[%emt 0:00:28][%cal Rd1f1][%mdl 512]} 37. Qc4+ {[%emt 0:00:28] [#]} (37. Kh2 Qxh4+) 37... Bd5 $1 {[%emt 0:00:18][%mdl 512] Weighted Error Value: White=0.78/Black=0.15 (very precise)} 0-1

[Event "MCCT Chessable Masters 2022"]
[Site "Online"]
[Date "2022.05.16"]
[Round "11.4"]
[White "Mamedyarov, Shakhriyar"]
[Black "Praggnanandhaa R"]
[Result "1-0"]
[ECO "D41"]
[WhiteElo "2770"]
[BlackElo "2642"]
[Annotator "TA"]
[PlyCount "91"]
[EventDate "2022.05.19"]
[EventType "tourn"]
[EventCountry "NET"]
[SourceTitle "playchess.com"]
[Source "ChessBase"]
[SourceQuality "1"]
[TimeControl "900+10"]

{[%evp 26,91,35,7,12,0,7,9,13,0,3,0,7,0,13,0,82,97,82,84,217,219,212,216,436,431,408,406,1388,279,277,168,256,234,235,289,275,283,283,276,193,193,193,186,186,186,29992,329,637,336,301,151,236,25,507,617,29973,29974,29972,29973,29973,29974,29971,6070,5197,4133,1206,1102]} 1. d4 {[%emt 0:00:00]} Nf6 {[%emt 0:00:00]} 2. c4 {[%emt 0:00:02]} e6 {[%emt 0:00:01]} 3. Nf3 {[%emt 0:00:01]} d5 {[%emt 0:00:01]} 4. Nc3 {[%emt 0:00:02]} c5 {[%emt 0:00:02]} 5. cxd5 {[%emt 0:00:04]} Nxd5 {[%emt 0:00:01]} 6. e4 {[%emt 0:00:01]} Nxc3 {[%emt 0:00:01]} 7. bxc3 {[%emt 0:00:00]} cxd4 {[%emt 0:00:00]} 8. cxd4 {[%emt 0:00:01]} Bb4+ {[%emt 0:00:01]} 9. Bd2 {[%emt 0:00:00]} Bxd2+ {[%emt 0:00:00]} 10. Qxd2 {[%emt 0:00:00]} O-O {[%emt 0:00:00]} 11. Bc4 {[%emt 0:00:05]} Nd7 {[%emt 0:00:02]} 12. O-O {[%emt 0:00:01]} b6 {[%emt 0:00:01]} 13. Rfe1 {[%emt 0:00:02]} Bb7 {[%emt 0:00:01]} 14. Rad1 {[%emt 0:00:02]} Rc8 {[%emt 0:00:01] D41: Queen's Gambit Declined: Semi-Tarrasch with 5 cxd5.} 15. Bb3 {[%emt 0:00:06]} Re8 {[%emt 0:00:01]} 16. d5 {[%emt 0:00:04]} exd5 {[%emt 0:00:02] [#] The position is equal.} 17. Nd4 $1 $146 {[%emt 0:00:06][%mdl 8] An important novelty.} ({Predecessor:} 17. e5 Qc7 18. Qe3 h6 19. h3 Re7 20. Ba4 d4 21. Rxd4 Bxf3 22. Bxd7 Rxd7 23. Rxd7 Qxd7 24. Qxf3 {½-½ (39) Mamedyarov,S (2771)-Praggnanandhaa,R (2624) Oslo 2022}) 17... Rc5 {[%emt 0:06:46]} (17... Rxe4 $2 18. Rxe4 dxe4 19. Nf5 $18 (19. Ne6 Qe7 $17)) 18. f3 {[%emt 0:00:33][%cal Bf2f3,Bf3f4,Bf4f5,Bf5f6][%mdl 32]} g6 {[%emt 0:04:10]} 19. Nc2 {[%emt 0:00:31]} Nf6 {[%emt 0:01:54]} 20. e5 {[%emt 0:00:48][%mdl 1024] White has compensation.} Nd7 {[%emt 0:00:09]} (20... Nh5 $1 $11) 21. f4 $16 {[%emt 0:00:03] White is more active.} Qh4 {[%emt 0:01:18]} 22. Nd4 {[%emt 0:00:52]} Qg4 {[%emt 0:01:25] Inhibits e6.} (22... Re6 $16) 23. Ba4 $18 {[%emt 0:02:34]} Re7 {[%emt 0:00:14] Prevents e6.} 24. h3 {[%emt 0:01:47]} Qg3 {[%emt 0:00:33]} (24... Qh4) 25. Bxd7 {[%emt 0:04:12]} Rxd7 {[%emt 0:00:02]} 26. f5 {[%emt 0:00:16]} Re7 {[%emt 0:00:51]} (26... Rc8 $142 27. Qh6 Qa3) 27. Re3 $2 {[%emt 0:00:53]} (27. f6 {Threatening mate with Qh6.} Rxe5 28. Nf3 Rxe1+ 29. Rxe1 Qxe1+ 30. Nxe1) 27... Qg5 {[%emt 0:00:10]} 28. Qf2 {[%emt 0:01:33] aiming for e6.} Rc4 {[%emt 0:00:53]} (28... Bc8 $142) 29. f6 {[%emt 0:01:26]} Rxe5 {[%emt 0:00:20]} 30. Rxe5 {[%emt 0:00:05]} Qxe5 {[%emt 0:00:01]} 31. Re1 {[%emt 0:00:02]} Qb8 {[%emt 0:00:03] [#]} 32. Qf4 $3 {[%emt 0:01:01][%mdl 512]} Qf8 {[%emt 0:00:08]} (32... Qxf4 $2 33. Re8#) 33. Re7 $40 {[%emt 0:00:03][%mdl 128] Black is in trouble.} Bc6 {[%emt 0:00:51]} 34. Qe3 {[%emt 0:01:00]} Ba4 {[%emt 0:00:06]} 35. Rxa7 {[%emt 0:01:23][%cal Od4f5] And now Nf5! would win.} Bc2 {[%emt 0:00:16] [#] Prevents Nf5.} (35... h5 $18 36. Ne6 fxe6 37. Rg7+ Qxg7 38. fxg7 Kxg7) 36. Qe5 $2 {[%emt 0:00:26]} (36. Ne6 $1 {[%mdl 512] mates} Re4 37. Qh6 Re1+ 38. Kh2 Qd6+ 39. Nf4 Qxf4+ 40. Qxf4 h5 41. Qh6 Rh1+ 42. Kxh1 Bf5 43. Qg7#) 36... Be4 $2 {[%emt 0:00:19]} (36... Rc8 37. Qxd5 Bb1) 37. Re7 {[%emt 0:00:26]} Rc8 {[%emt 0:00:04] [#] Prevents Re8.} 38. Kh2 {[%emt 0:00:09]} (38. Ne6 $1 $18 {[%cal Re6f8][%mdl 512]} fxe6 39. Qxe6+ Kh8 40. Qe5) 38... h5 {[%emt 0:00:12]} (38... h6 $16 {might work better.}) 39. h4 $2 {[%emt 0:00:19]} (39. a4 $18) 39... Kh8 $2 {[%emt 0:00:24][%mdl 8192]} (39... Ra8 $11 {and Black has nothing to worry.}) 40. Nb5 {[%emt 0:00:15] White wants to mate with Nd6.} Qg8 {[%emt 0:00:04]} 41. Nd6 {[%emt 0:00:04][%csl LRc8,LRe4,LRf7]} Rf8 {[%emt 0:00:01] [#]} 42. Nxf7+ $1 {[%emt 0:00:14][%mdl 576] Deflection} Rxf7 {[%emt 0:00:14]} 43. Re8 {[%emt 0:00:01]} Kh7 {[%emt 0:00:13]} 44. Rxg8 {[%emt 0:00:02]} (44. Qb8 $142 Qxe8 45. Qxe8 Rxf6 46. Qe7+ Kg8 47. Qxf6 b5 48. Kg3 Kh7 49. Qf7+ Kh8 50. Qd7) 44... Kxg8 {[%emt 0:00:00]} 45. Qe8+ {[%emt 0:00:05]} Rf8 {[%emt 0:00:09]} 46. Qe6+ {[%emt 0:00:02] Weighted Error Value: White=0.56/Black=0.96} 1-0